[Event "26th Troya Open 2018"]
[Site "Canakkale"]
[Date "2018.08.10"]
[Round "8.14"]
[White "Kocakaplan, Emre"]
[Black "Erkole, Melih Naci"]
[Result "1-0"]
[ECO "A85"]
[WhiteElo "1591"]
[BlackElo "1666"]
[Annotator "NA"]
[PlyCount "131"]
[EventDate "2018.08.06"]
[EventType "swiss"]
[EventCountry "TUR"]
[SourceTitle "playchess.com"]
[Source "ChessBase"]
[SourceQuality "1"]
[TimeControl "5400+30"]

1. Nf3 {[%emt 0:00:30]} e6 {[%emt 0:00:30]} 2. c4 {[%emt 0:00:30]} f5 {[%emt 0:00:30]} 3. d4 {[%emt 0:00:30]} Nf6 {[%emt 0:00:30]} 4. Nc3 {[%emt 0:00:30]} Bb4 {[%emt 0:00:30]} 5. Qc2 {[%emt 0:00:30]} O-O {[%emt 0:00:30]} 6. g3 {[%emt 0:02:30]} d6 {[%emt 0:06:30]} 7. Bg2 {[%emt 0:00:30]} Nbd7 {[%emt 0:01:30]} 8. O-O {[%emt 0:00:30]} Bxc3 {[%emt 0:00:30]} 9. Qxc3 {[%emt 0:00:30]} Ne4 {[%emt 0:00:30]} 10. Qc2 {[%emt 0:01:30]} Ndf6 {[%emt 0:10:30]} 11. Nd2 {[%emt 0:02:30]} d5 {[%emt 0:04:30]} 12. Nxe4 {[%emt 0:08:30]} dxe4 {[%emt 0:05:30]} 13. Rd1 {[%emt 0:01:30]} b6 {[%emt 0:00:30]} 14. Bf4 {[%emt 0:01:30]} Bb7 {[%emt 0:08:30]} 15. Rab1 {[%emt 0:01:30]} Qe7 {[%emt 0:10:30]} 16. b4 {[%emt 0:01:30]} h6 {[%emt 0:12:30]} 17. h4 {[%emt 0:09:30]} Rfc8 {[%emt 0:04:30]} 18. Qb2 {[%emt 0:13:30]} Nh5 {[%emt 0:10:30]} 19. Qc1 {[%emt 0:05:30]} Nxf4 {[%emt 0:02:00]} 20. Qxf4 {[%emt 0:00:30]} Rd8 {[%emt 0:00:53]} 21. Qe5 {[%emt 0:03:30]} Qd6 {[%emt 0:05:38]} 22. Qxd6 {[%emt 0:02:30]} Rxd6 {[%emt 0:00:16]} 23. e3 {[%emt 0:00:30]} Rad8 {[%emt 0:00:49]} 24. b5 {[%emt 0:00:30]} a5 {[%emt 0:04:11]} 25. Bf1 {[%emt 0:01:30]} Kf7 {[%emt 0:01:23]} 26. Rdc1 {[%emt 0:00:30]} Rc8 {[%emt 0:03:30]} 27. c5 {[%emt 0:00:30]} Rdd8 {[%emt 0:01:48]} 28. c6 {[%emt 0:01:30]} Ba8 {[%emt 0:00:30]} 29. Bc4 {[%emt 0:00:00]} Rd6 {[%emt 0:00:02]} 30. a4 {[%emt 0:01:00]} Kf6 {[%emt 0:00:11]} 31. h5 {[%emt 0:00:30]} g5 {[%emt 0:01:01]} 32. hxg6 {[%emt 0:00:30]} Kxg6 {[%emt 0:00:22]} 33. Kg2 {[%emt 0:00:00]} Kf6 {[%emt 0:02:05]} 34. Rh1 {[%emt 0:01:00]} Rh8 {[%emt 0:00:06]} 35. Be2 {[%emt 0:00:30]} Rdd8 {[%emt 0:01:53]} 36. Rbd1 {[%emt 0:00:30]} Rd6 {[%emt 0:01:36]} 37. f3 {[%emt 0:01:30]} exf3+ {[%emt 0:00:39]} 38. Bxf3 {[%emt 0:00:30]} Rh7 {[%emt 0:00:35]} 39. Kf2 {[%emt 0:00:00]} Rh8 {[%emt 0:00:25]} 40. Rh4 {[%emt 0:00:00]} Kg5 {[%emt 0:00:29]} 41. Rhh1 {[%emt 0:01:30]} h5 {[%emt 0:00:11]} 42. Rh4 {[%emt 0:00:30]} e5 {[%emt 0:00:07]} 43. dxe5 {[%emt 0:01:30]} Re6 {[%emt 0:00:15]} 44. Rd7 {[%emt 0:00:30]} Rxe5 {[%emt 0:00:19]} 45. Rxc7 {[%emt 0:00:30]} Rc5 {[%emt 0:00:32]} 46. Rd4 {[%emt 0:00:30]} Rc2+ {[%emt 0:00:16]} 47. Ke1 {[%emt 0:00:30]} Rc1+ {[%emt 0:01:08]} 48. Kf2 {[%emt 0:01:30]} Rc2+ {[%emt 0:00:03]} 49. Be2 {[%emt 0:00:00]} Ra2 {[%emt 0:01:03]} 50. Ra7 {[%emt 0:00:00]} Rc2 {[%emt 0:00:27]} 51. Rc4 {[%emt 0:01:30]} Ra2 {[%emt 0:01:09]} 52. c7 {[%emt 0:00:30]} Rc8 {[%emt 0:00:06]} 53. Rxa8 {[%emt 0:01:30]} Rxa8 {[%emt 0:00:30]} 54. c8=Q {[%emt 0:00:30]} Rxc8 {[%emt 0:00:30]} 55. Rxc8 {[%emt 0:00:30]} Rxa4 {[%emt 0:00:30]} 56. Rb8 {[%emt 0:00:30]} Ra2 {[%emt 0:00:30]} 57. Rxb6 {[%emt 0:00:30]} a4 {[%emt 0:00:30]} 58. Ra6 {[%emt 0:00:30]} a3 {[%emt 0:00:30]} 59. Kf3 {[%emt 0:00:30]} Ra1 {[%emt 0:00:00]} 60. Ra5 {[%emt 0:00:00]} a2 {[%emt 0:00:00]} 61. Ra6 {[%emt 0:00:00]} h4 {[%emt 0:01:46]} 62. gxh4+ {[%emt 0:00:00]} Kxh4 {[%emt 0:00:00]} 63. Kf4 {[%emt 0:00:00]} Kh3 {[%emt 0:00:14]} 64. Bf3 {[%emt 0:01:30]} Kh2 {[%emt 0:00:36]} 65. Rh6+ {[%emt 0:00:30]} Kg1 {[%emt 0:00:30]} 66. Kg3 {[%emt 0:00:00]} 1-0

[Event "26th Troya Open 2018"]
[Site "Canakkale"]
[Date "2018.08.08"]
[Round "8.15"]
[White "Pekdemir, Veysel"]
[Black "Istekli, Erdem"]
[Result "0-1"]
[ECO "B33"]
[WhiteElo "1617"]
[BlackElo "1713"]
[Annotator "NA"]
[PlyCount "90"]
[EventDate "2018.08.06"]
[EventType "swiss"]
[EventCountry "TUR"]
[SourceTitle "playchess.com"]
[Source "ChessBase"]
[SourceQuality "1"]
[TimeControl "5400+30"]

1. e4 {[%emt 0:00:30]} c5 {[%emt 0:00:30]} 2. Nf3 {[%emt 0:00:30]} Nc6 {[%emt 0:00:30]} 3. d4 {[%emt 0:00:30]} cxd4 {[%emt 0:00:30]} 4. Nxd4 {[%emt 0:00:30]} Nf6 {[%emt 0:00:30]} 5. Nc3 {[%emt 0:00:30]} e5 {[%emt 0:00:30]} 6. Ndb5 {[%emt 0:00:30]} d6 {[%emt 0:00:30]} 7. Bg5 {[%emt 0:00:30]} a6 {[%emt 0:00:30]} 8. Na3 {[%emt 0:00:30]} b5 {[%emt 0:00:00]} 9. Nd5 {[%emt 0:05:30]} Be7 {[%emt 0:00:00]} 10. Bxf6 {[%emt 0:04:30]} Bxf6 {[%emt 0:00:30]} 11. c3 {[%emt 0:02:30]} Bg5 {[%emt 0:01:30]} 12. Nc2 {[%emt 0:01:30]} O-O {[%emt 0:01:30]} 13. Bd3 {[%emt 0:07:30]} Be6 {[%emt 0:25:30]} 14. Nce3 {[%emt 0:02:30]} g6 {[%emt 0:12:30]} 15. O-O {[%emt 0:17:30]} Ne7 {[%emt 0:20:30]} 16. f4 {[%emt 0:04:30]} exf4 {[%emt 0:09:30]} 17. Nxf4 {[%emt 0:01:30]} Qb6 {[%emt 0:00:30]} 18. Qe2 {[%emt 0:04:30]} Nc6 {[%emt 0:02:30]} 19. Kh1 {[%emt 0:02:30]} Bxf4 {[%emt 0:02:09]} 20. Rxf4 {[%emt 0:00:30]} Ne5 {[%emt 0:00:05]} 21. a3 {[%emt 0:05:30]} Rac8 {[%emt 0:02:22]} 22. h4 {[%emt 0:04:30]} Qc6 {[%emt 0:06:31]} 23. Rd1 {[%emt 0:05:30]} Rcd8 {[%emt 0:00:26]} 24. h5 {[%emt 0:00:30]} d5 {[%emt 0:05:53]} 25. exd5 {[%emt 0:07:30]} Bxd5 {[%emt 0:00:11]} 26. Rdf1 {[%emt 0:03:59]} Nxd3 {[%emt 0:02:46]} 27. Rd4 {[%emt 0:04:30]} Nc5 {[%emt 0:01:34]} 28. Ng4 {[%emt 0:01:30]} Ne4 {[%emt 0:03:20]} 29. Rxe4 {[%emt 0:00:41]} Bxe4 {[%emt 0:00:33]} 30. Nf6+ {[%emt 0:00:30]} Kg7 {[%emt 0:00:16]} 31. h6+ {[%emt 0:02:28]} Kxh6 {[%emt 0:00:47]} 32. Nxe4 {[%emt 0:00:55]} Rde8 {[%emt 0:00:36]} 33. Qd2+ {[%emt 0:03:20]} Kg7 {[%emt 0:00:30]} 34. Nf6 {[%emt 0:01:00]} Re6 {[%emt 0:00:23]} 35. Nd7 {[%emt 0:00:29]} Rd8 {[%emt 0:00:57]} 36. Qd4+ {[%emt 0:00:30]} f6 {[%emt 0:00:00]} 37. Rd1 {[%emt 0:01:22]} Re7 {[%emt 0:00:03]} 38. Qg4 {[%emt 0:02:36]} Rexd7 {[%emt 0:00:30]} 39. Re1 {[%emt 0:00:00]} Qd6 {[%emt 0:00:56]} 40. Qf3 {[%emt 0:00:11]} Qd5 {[%emt 0:00:06]} 41. Qg3 {[%emt 0:00:21]} Qh5+ {[%emt 0:00:47]} 42. Kg1 {[%emt 0:00:05]} Rd1 {[%emt 0:00:00]} 43. Rxd1 {[%emt 0:01:39]} Rxd1+ {[%emt 0:00:31]} 44. Kf2 {[%emt 0:00:30]} Qf5+ {[%emt 0:00:00]} 45. Qf3 {[%emt 0:00:06]} Qxf3+ {[%emt 0:00:21]} 0-1

[Event "26th Troya Open 2018"]
[Site "Canakkale"]
[Date "2018.08.10"]
[Round "8.16"]
[White "Kirazci, Ugur Can"]
[Black "Ileri, Oktay"]
[Result "0-1"]
[ECO "B45"]
[WhiteElo "1537"]
[BlackElo "1697"]
[Annotator "NA RC"]
[PlyCount "72"]
[EventDate "2018.08.06"]
[EventType "swiss"]
[EventCountry "TUR"]
[SourceTitle "playchess.com"]
[Source "ChessBase"]
[SourceQuality "1"]
[TimeControl "5400+30"]

1. e4 {[%emt 0:00:30]} c5 {[%emt 0:00:30]} 2. Nf3 {[%emt 0:00:30]} e6 {[%emt 0:00:30]} 3. d4 {[%emt 0:00:30]} cxd4 {[%emt 0:00:30]} 4. Nxd4 {[%emt 0:00:30]} Nf6 {[%emt 0:00:30]} 5. Nc3 {[%emt 0:00:30]} Nc6 {[%emt 0:00:30]} 6. Nxc6 {[%emt 0:00:30]} bxc6 {[%emt 0:00:30]} 7. e5 {[%emt 0:00:30]} Nd5 {[%emt 0:00:30]} 8. Nxd5 {[%emt 0:00:30]} cxd5 {[%emt 0:00:00]} 9. Be3 {[%emt 0:08:30]} d6 {[%emt 0:05:00]} 10. exd6 {[%emt 0:01:30]} Bxd6 {[%emt 0:00:30]} 11. c4 {[%emt 0:05:30]} Qa5+ {[%emt 0:09:30]} 12. Bd2 {[%emt 0:00:30]} Qb6 {[%emt 0:00:00]} 13. Bc3 {[%emt 0:01:30]} Bc5 {[%emt 0:02:00]} 14. Bxg7 {[%emt 0:10:30]} Bxf2+ {[%emt 0:00:30]} 15. Kd2 {[%emt 0:00:30]} Rg8 {[%emt 0:05:30]} 16. Bf6 {[%emt 0:00:00]} Rg6 {[%emt 0:00:30]} 17. Qf3 {[%emt 0:02:00]} Rxf6 {[%emt 0:03:30]} 18. Qxf6 {[%emt 0:03:30]} Bd4 {[%emt 0:00:30]} 19. Qg5 {[%emt 0:02:30]} Qxb2+ {[%emt 0:00:00]} 20. Kd3 {[%emt 0:02:30]} Qc3+ {[%emt 0:00:00]} 21. Ke2 {[%emt 0:00:30]} Qxa1 {[%emt 0:00:30]} 22. Qg8+ {[%emt 0:00:30]} Ke7 {[%emt 0:00:00]} 23. Qxh7 {[%emt 0:02:30]} Ba6 {[%emt 0:00:00]} 24. Qh4+ {[%emt 0:05:30]} Bf6 {[%emt 0:00:30]} 25. Qf4 {[%emt 0:00:00]} Bxc4+ {[%emt 0:00:30]} 26. Kd2 {[%emt 0:01:00]} Qxa2+ {[%emt 0:00:30]} 27. Ke3 {[%emt 0:01:30]} Qb3+ {[%emt 0:00:30]} 28. Kf2 {[%emt 0:00:30]} Qc2+ {[%emt 0:01:30]} 29. Kf3 {[%emt 0:00:30]} Bxf1 {[%emt 0:00:30]} 30. Rxf1 {[%emt 0:00:30]} Qd3+ {[%emt 0:00:30]} 31. Kf2 {[%emt 0:01:30]} Rc8 {[%emt 0:00:00]} 32. Qb4+ {[%emt 0:04:30]} Ke8 {[%emt 0:00:00]} 33. Qa4+ {[%emt 0:00:00]} Kf8 {[%emt 0:00:30]} 34. Qb4+ {[%emt 0:01:00]} Be7 {[%emt 0:00:30]} 35. Qf4 {[%emt 0:00:30]} Bc5+ {[%emt 0:01:30]} 36. Ke1 {[%emt 0:00:30]} Qe3+ {[%emt 0:00:00]} 0-1

[Event "26th Troya Open 2018"]
[Site "Canakkale"]
[Date "2018.08.10"]
[Round "8.17"]
[White "Gurses, Ayberk"]
[Black "Altundasar, Yigit Bora"]
[Result "0-1"]
[ECO "B20"]
[WhiteElo "1660"]
[BlackElo "1538"]
[Annotator "NA"]
[PlyCount "88"]
[EventDate "2018.08.06"]
[EventType "swiss"]
[EventCountry "TUR"]
[SourceTitle "playchess.com"]
[Source "ChessBase"]
[SourceQuality "1"]
[TimeControl "5400+30"]

1. e4 {[%emt 0:00:30]} c5 {[%emt 0:00:30]} 2. b3 {[%emt 0:00:30]} d6 {[%emt 0:00:30]} 3. Bb2 {[%emt 0:00:30]} e6 {[%emt 0:00:30]} 4. f4 {[%emt 0:00:30]} Nf6 {[%emt 0:00:30]} 5. Nc3 {[%emt 0:00:30]} g6 {[%emt 0:04:30]} 6. d4 {[%emt 0:03:30]} Be7 {[%emt 0:16:30]} 7. dxc5 {[%emt 0:13:30]} dxc5 {[%emt 0:05:30]} 8. Qf3 {[%emt 0:01:30]} Bf8 {[%emt 0:05:30]} 9. e5 {[%emt 0:11:30]} Nd5 {[%emt 0:01:30]} 10. O-O-O {[%emt 0:01:30]} Bg7 {[%emt 0:00:30]} 11. Nxd5 {[%emt 0:03:30]} exd5 {[%emt 0:00:30]} 12. Rxd5 {[%emt 0:00:30]} Qc7 {[%emt 0:00:30]} 13. Ba3 {[%emt 0:04:30]} O-O {[%emt 0:00:00]} 14. Bxc5 {[%emt 0:06:30]} Re8 {[%emt 0:00:00]} 15. Bd6 {[%emt 0:01:30]} Qb6 {[%emt 0:00:30]} 16. Bb5 {[%emt 0:02:30]} Nc6 {[%emt 0:00:30]} 17. Bxc6 {[%emt 0:02:30]} bxc6 {[%emt 0:00:00]} 18. Rc5 {[%emt 0:01:30]} Bb7 {[%emt 0:00:00]} 19. Qc3 {[%emt 0:02:30]} a5 {[%emt 0:03:30]} 20. a4 {[%emt 0:02:30]} Re6 {[%emt 0:00:00]} 21. Qe3 {[%emt 0:10:30]} Rd8 {[%emt 0:00:00]} 22. Rc3 {[%emt 0:02:30]} Qxe3+ {[%emt 0:02:30]} 23. Rxe3 {[%emt 0:00:00]} Rdxd6 {[%emt 0:00:30]} 24. exd6 {[%emt 0:01:00]} Rxe3 {[%emt 0:00:30]} 25. d7 {[%emt 0:00:00]} Bf6 {[%emt 0:00:30]} 26. Nf3 {[%emt 0:00:00]} Bd8 {[%emt 0:00:30]} 27. Ne5 {[%emt 0:00:30]} f6 {[%emt 0:01:30]} 28. Kd2 {[%emt 0:00:00]} Re4 {[%emt 0:00:30]} 29. Nd3 {[%emt 0:00:00]} Rd4 {[%emt 0:00:30]} 30. Kc3 {[%emt 0:01:30]} Rxd7 {[%emt 0:00:30]} 31. Nc5 {[%emt 0:00:00]} Re7 {[%emt 0:01:30]} 32. Rd1 {[%emt 0:00:00]} Bb6 {[%emt 0:01:30]} 33. Nxb7 {[%emt 0:00:00]} Rxb7 {[%emt 0:00:30]} 34. Rd6 {[%emt 0:00:00]} Kf7 {[%emt 0:01:30]} 35. Rxc6 {[%emt 0:00:00]} Rc7 {[%emt 0:00:30]} 36. Rxc7+ {[%emt 0:00:00]} Bxc7 {[%emt 0:00:00]} 37. g3 {[%emt 0:00:00]} Ke6 {[%emt 0:00:00]} 38. Kc4 {[%emt 0:00:00]} g5 {[%emt 0:02:30]} 39. fxg5 {[%emt 0:00:30]} fxg5 {[%emt 0:00:30]} 40. Kb5 {[%emt 0:00:00]} Kd7 {[%emt 0:00:00]} 41. c3 {[%emt 0:00:00]} h5 {[%emt 0:01:00]} 42. b4 {[%emt 0:00:30]} axb4 {[%emt 0:01:30]} 43. cxb4 {[%emt 0:00:00]} Bxg3 {[%emt 0:04:30]} 44. hxg3 {[%emt 0:01:00]} h4 {[%emt 0:00:30]} 0-1

[Event "26th Troya Open 2018"]
[Site "Canakkale"]
[Date "2018.08.10"]
[Round "8.18"]
[White "Ozkurt, Deniz"]
[Black "Ulupinar, Furkan"]
[Result "1/2-1/2"]
[ECO "B23"]
[WhiteElo "1635"]
[BlackElo "1412"]
[Annotator "NA"]
[PlyCount "97"]
[EventDate "2018.08.06"]
[EventType "swiss"]
[EventCountry "TUR"]
[SourceTitle "playchess.com"]
[Source "ChessBase"]
[SourceQuality "1"]
[TimeControl "5400+30"]

1. e4 {[%emt 0:00:30]} c5 {[%emt 0:00:30]} 2. Nc3 {[%emt 0:00:30]} Nc6 {[%emt 0:00:30]} 3. f4 {[%emt 0:00:30]} g6 {[%emt 0:00:30]} 4. Nf3 {[%emt 0:00:30]} Bg7 {[%emt 0:00:30]} 5. Bb5 {[%emt 0:00:30]} e6 {[%emt 0:00:30]} 6. Bxc6 {[%emt 0:00:30]} bxc6 {[%emt 0:00:30]} 7. d3 {[%emt 0:00:30]} d5 {[%emt 0:04:30]} 8. e5 {[%emt 0:02:30]} Rb8 {[%emt 0:00:30]} 9. O-O {[%emt 0:00:00]} Ba6 {[%emt 0:04:30]} 10. b3 {[%emt 0:02:00]} h5 {[%emt 0:06:30]} 11. Qe1 {[%emt 0:01:30]} Bf8 {[%emt 0:03:30]} 12. Ba3 {[%emt 0:00:00]} Bb5 {[%emt 0:03:30]} 13. Nd1 {[%emt 0:12:00]} d4 {[%emt 0:13:30]} 14. Nf2 {[%emt 0:02:30]} Qb6 {[%emt 0:01:30]} 15. Ne4 {[%emt 0:00:00]} Nh6 {[%emt 0:00:30]} 16. Nf6+ {[%emt 0:01:00]} Kd8 {[%emt 0:00:30]} 17. Ne4 {[%emt 0:01:30]} Nf5 {[%emt 0:01:30]} 18. Kh1 {[%emt 0:05:30]} Be7 {[%emt 0:02:30]} 19. Qd2 {[%emt 0:04:30]} Ke8 {[%emt 0:00:30]} 20. Rae1 {[%emt 0:06:30]} Rd8 {[%emt 0:06:30]} 21. Kg1 {[%emt 0:10:30]} Kf8 {[%emt 0:03:30]} 22. Nfg5 {[%emt 0:02:30]} Rd5 {[%emt 0:04:30]} 23. Nf3 {[%emt 0:01:30]} Qa6 {[%emt 0:01:30]} 24. Qc1 {[%emt 0:00:30]} Qb6 {[%emt 0:02:30]} 25. Nfd2 {[%emt 0:03:30]} Qc7 {[%emt 0:04:30]} 26. Nc4 {[%emt 0:00:30]} a5 {[%emt 0:03:30]} 27. Qd2 {[%emt 0:04:30]} a4 {[%emt 0:00:30]} 28. Rb1 {[%emt 0:05:30]} axb3 {[%emt 0:00:30]} 29. axb3 {[%emt 0:00:30]} h4 {[%emt 0:03:30]} 30. Ra1 {[%emt 0:01:30]} g5 {[%emt 0:01:30]} 31. fxg5 {[%emt 0:05:30]} Bxc4 {[%emt 0:00:30]} 32. bxc4 {[%emt 0:00:00]} Rxe5 {[%emt 0:00:00]} 33. Qf4 {[%emt 0:01:00]} Bd6 {[%emt 0:04:00]} 34. Nxd6 {[%emt 0:00:30]} Qxd6 {[%emt 0:00:30]} 35. Rae1 {[%emt 0:00:30]} Rxe1 {[%emt 0:00:30]} 36. Qxd6+ {[%emt 0:00:30]} Nxd6 {[%emt 0:00:30]} 37. Rxe1 {[%emt 0:00:00]} Kg7 {[%emt 0:01:30]} 38. Bxc5 {[%emt 0:00:00]} Nf5 {[%emt 0:00:00]} 39. Re4 {[%emt 0:01:30]} Rd8 {[%emt 0:00:00]} 40. Kf2 {[%emt 0:00:30]} Kg6 {[%emt 0:00:30]} 41. g4 {[%emt 0:01:30]} hxg3+ {[%emt 0:01:30]} 42. hxg3 {[%emt 0:00:00]} Rd7 {[%emt 0:01:30]} 43. Kf3 {[%emt 0:06:16]} Kxg5 {[%emt 0:01:59]} 44. g4 {[%emt 0:00:58]} Ne3 {[%emt 0:03:25]} 45. Bxd4 {[%emt 0:00:30]} Nxc2 {[%emt 0:00:30]} 46. Be3+ {[%emt 0:00:16]} Kg6 {[%emt 0:04:11]} 47. Ke2 {[%emt 0:01:39]} Nxe3 {[%emt 0:01:45]} 48. Kxe3 {[%emt 0:00:30]} Kg5 {[%emt 0:00:58]} 49. d4 {[%emt 0:03:42]} 1/2-1/2

[Event "26th Troya Open 2018"]
[Site "Canakkale"]
[Date "2018.08.10"]
[Round "8.19"]
[White "Celik, Meric"]
[Black "Bozyaka, Altug"]
[Result "1-0"]
[ECO "B26"]
[WhiteElo "1471"]
[BlackElo "1649"]
[Annotator "NA"]
[PlyCount "89"]
[EventDate "2018.08.06"]
[EventType "swiss"]
[EventCountry "TUR"]
[SourceTitle "playchess.com"]
[Source "ChessBase"]
[SourceQuality "1"]
[TimeControl "5400+30"]

1. e4 {[%emt 0:00:30]} c5 {[%emt 0:00:30]} 2. Nc3 {[%emt 0:00:30]} d6 {[%emt 0:00:30]} 3. Nge2 {[%emt 0:00:30]} Nf6 {[%emt 0:00:30]} 4. g3 {[%emt 0:00:30]} Nc6 {[%emt 0:00:30]} 5. Bg2 {[%emt 0:00:00]} g6 {[%emt 0:09:30]} 6. d3 {[%emt 0:00:00]} Bg7 {[%emt 0:00:30]} 7. O-O {[%emt 0:00:30]} O-O {[%emt 0:02:30]} 8. h3 {[%emt 0:01:30]} e6 {[%emt 0:02:30]} 9. Be3 {[%emt 0:01:30]} Rb8 {[%emt 0:09:30]} 10. Qd2 {[%emt 0:05:30]} b5 {[%emt 0:03:30]} 11. Bh6 {[%emt 0:12:30]} b4 {[%emt 0:07:30]} 12. Na4 {[%emt 0:10:30]} Bb7 {[%emt 0:09:30]} 13. Bxg7 {[%emt 0:00:30]} Kxg7 {[%emt 0:00:30]} 14. a3 {[%emt 0:04:30]} b3 {[%emt 0:07:30]} 15. c4 {[%emt 0:06:30]} Qc7 {[%emt 0:04:30]} 16. Nac3 {[%emt 0:00:30]} Rfd8 {[%emt 0:02:30]} 17. f4 {[%emt 0:17:30]} Ne7 {[%emt 0:03:30]} 18. f5 {[%emt 0:04:30]} exf5 {[%emt 0:05:30]} 19. exf5 {[%emt 0:00:30]} d5 {[%emt 0:03:30]} 20. fxg6 {[%emt 0:02:30]} fxg6 {[%emt 0:03:30]} 21. Qg5 {[%emt 0:00:30]} Qd6 {[%emt 0:02:33]} 22. Nb5 {[%emt 0:02:30]} Qb6 {[%emt 0:01:38]} 23. Nf4 {[%emt 0:04:30]} Neg8 {[%emt 0:05:38]} 24. Rae1 {[%emt 0:07:32]} Re8 {[%emt 0:03:01]} 25. Nc3 {[%emt 0:01:13]} dxc4 {[%emt 0:01:55]} 26. dxc4 {[%emt 0:00:59]} Bxg2 {[%emt 0:01:29]} 27. Kxg2 {[%emt 0:00:12]} Rbd8 {[%emt 0:02:57]} 28. Ncd5 {[%emt 0:00:20]} Qc6 {[%emt 0:01:48]} 29. Kh2 {[%emt 0:02:10]} Ne4 {[%emt 0:02:15]} 30. Rxe4 {[%emt 0:01:12]} h6 {[%emt 0:02:48]} 31. Qh4 {[%emt 0:05:12]} g5 {[%emt 0:01:07]} 32. Nh5+ {[%emt 0:00:04]} Kh8 {[%emt 0:00:15]} 33. Qg4 {[%emt 0:00:43]} Rf8 {[%emt 0:00:28]} 34. Rxf8 {[%emt 0:01:54]} Rxf8 {[%emt 0:00:30]} 35. Kg2 {[%emt 0:00:35]} Qg6 {[%emt 0:00:03]} 36. Qe2 {[%emt 0:01:05]} Qf5 {[%emt 0:00:15]} 37. g4 {[%emt 0:00:50]} Qf7 {[%emt 0:00:25]} 38. Ng3 {[%emt 0:01:20]} Nf6 {[%emt 0:00:54]} 39. Nxf6 {[%emt 0:01:18]} Qxf6 {[%emt 0:00:05]} 40. Re6 {[%emt 0:00:24]} Qd4 {[%emt 0:01:19]} 41. Qe5+ {[%emt 0:02:11]} Qxe5 {[%emt 0:00:21]} 42. Rxe5 {[%emt 0:00:00]} Rd8 {[%emt 0:00:28]} 43. Rd5 {[%emt 0:00:19]} Rc8 {[%emt 0:00:21]} 44. Ne4 {[%emt 0:01:21]} Re8 {[%emt 0:00:30]} 45. Kf3 {[%emt 0:00:26]} 1-0

[Event "26th Troya Open 2018"]
[Site "Canakkale"]
[Date "2018.08.10"]
[Round "8.20"]
[White "Cetinkaya, Umut Can"]
[Black "Buyukgokcesu, Tahir Sami"]
[Result "1-0"]
[ECO "B23"]
[WhiteElo "1593"]
[BlackElo "1585"]
[Annotator "NA RC"]
[PlyCount "31"]
[EventDate "2018.08.06"]
[EventType "swiss"]
[EventCountry "TUR"]
[SourceTitle "playchess.com"]
[Source "ChessBase"]
[SourceQuality "1"]
[TimeControl "5400+30"]

1. e4 {[%emt 0:00:30]} c5 {[%emt 0:00:30]} 2. Nc3 {[%emt 0:00:30]} Nc6 {[%emt 0:00:30]} 3. f4 {[%emt 0:00:30]} d6 {[%emt 0:00:30]} 4. Bb5 {[%emt 0:00:30]} Bd7 {[%emt 0:00:30]} 5. Bxc6 {[%emt 0:04:30]} bxc6 {[%emt 0:04:30]} 6. Nf3 {[%emt 0:00:30]} Nf6 {[%emt 0:03:30]} 7. O-O {[%emt 0:01:30]} g6 {[%emt 0:00:30]} 8. Qe1 {[%emt 0:06:30]} e6 {[%emt 0:05:30]} 9. e5 {[%emt 0:06:30]} Nd5 {[%emt 0:01:30]} 10. Ne4 {[%emt 0:11:30]} dxe5 {[%emt 0:00:30]} 11. fxe5 {[%emt 0:01:30]} Be7 {[%emt 0:00:30]} 12. d3 {[%emt 0:11:30]} h6 {[%emt 0:03:30]} 13. Qf2 {[%emt 0:03:30]} Rh7 {[%emt 0:01:30]} 14. Nfd2 {[%emt 0:18:30]} f5 {[%emt 0:15:30]} 15. exf6 {[%emt 0:01:30]} Nxf6 {[%emt 0:00:30]} 16. Nxf6+ {[%emt 0:00:30]} 1-0

[Event "26th Troya Open 2018"]
[Site "Canakkale"]
[Date "2018.08.10"]
[Round "8.21"]
[White "Cevizci, Yusuf Baran"]
[Black "Yilmaz, Kerem Tuna"]
[Result "1-0"]
[ECO "B31"]
[WhiteElo "1713"]
[BlackElo "1500"]
[Annotator "NA"]
[PlyCount "55"]
[EventDate "2018.08.06"]
[EventType "swiss"]
[EventCountry "TUR"]
[SourceTitle "playchess.com"]
[Source "ChessBase"]
[SourceQuality "1"]
[TimeControl "5400+30"]

1. e4 {[%emt 0:00:30]} c5 {[%emt 0:00:30]} 2. Nf3 {[%emt 0:00:30]} Nc6 {[%emt 0:00:30]} 3. Bb5 {[%emt 0:00:30]} g6 {[%emt 0:00:30]} 4. O-O {[%emt 0:00:30]} Bg7 {[%emt 0:00:30]} 5. Bxc6 {[%emt 0:06:30]} bxc6 {[%emt 0:05:30]} 6. d4 {[%emt 0:09:30]} cxd4 {[%emt 0:07:30]} 7. Nxd4 {[%emt 0:00:30]} Nf6 {[%emt 0:10:30]} 8. Re1 {[%emt 0:02:30]} O-O {[%emt 0:00:30]} 9. c4 {[%emt 0:01:30]} c5 {[%emt 0:12:30]} 10. Nc2 {[%emt 0:06:30]} d6 {[%emt 0:05:30]} 11. Nc3 {[%emt 0:08:30]} Bb7 {[%emt 0:09:30]} 12. Rb1 {[%emt 0:06:30]} Rc8 {[%emt 0:04:30]} 13. Bg5 {[%emt 0:04:30]} Qa5 {[%emt 0:12:30]} 14. Nd5 {[%emt 0:04:30]} Bxd5 {[%emt 0:01:30]} 15. exd5 {[%emt 0:00:30]} Rfe8 {[%emt 0:00:30]} 16. a3 {[%emt 0:00:30]} Kf8 {[%emt 0:04:30]} 17. Qd3 {[%emt 0:00:30]} Nd7 {[%emt 0:01:30]} 18. Qh3 {[%emt 0:00:30]} Ne5 {[%emt 0:00:59]} 19. Qxh7 {[%emt 0:01:30]} e6 {[%emt 0:05:43]} 20. Ne3 {[%emt 0:09:30]} Nd3 {[%emt 0:01:51]} 21. Bh6 {[%emt 0:02:30]} Bxh6 {[%emt 0:01:41]} 22. Qxh6+ {[%emt 0:00:30]} Ke7 {[%emt 0:00:57]} 23. Red1 {[%emt 0:00:30]} Ne5 {[%emt 0:01:00]} 24. dxe6 {[%emt 0:02:30]} fxe6 {[%emt 0:00:23]} 25. Qg7+ {[%emt 0:00:00]} Nf7 {[%emt 0:00:42]} 26. Nd5+ {[%emt 0:01:00]} exd5 {[%emt 0:00:15]} 27. Re1+ {[%emt 0:00:30]} Kd8 {[%emt 0:00:30]} 28. Qf6+ {[%emt 0:00:00]} 1-0